bitfinex/quotes_ETHUSD_20220220
["timestamp","ask_amount","ask_price","bid_price","bid_amount"]
[1645380015741,3.5,2647.3,2646.9,0.00944927]
[1645380016343,1.1834,2647.4,2646.9,0.00944927]
[1645380016547,1.1834,2647.4,2646.7,0.00266613]
[1645380016741,1.1834,2647.4,2647.0,0.0023621]
[1645380017143,0.00238186,2647.6,2647.0,0.0023621]
[1645380017743,0.00238186,2647.6,2646.9,0.94481]
[1645380017948,0.00238186,2647.6,2647.2,0.00236202]
[1645380018843,0.00238186,2647.6,2647.0,0.94469]
[1645380019099,0.00238186,2647.6,2647.3,0.94704198]
[1645380019686,0.00238186,2647.6,2647.3,1.89170838]
[1645380020092,0.00238186,2647.6,2647.3,1.8893464]
[1645380020291,0.00238186,2647.6,2647.3,1.89170836]
[1645380020496,12.51063543,2648.0,2647.3,0.00236196]
[1645380020696,0.00237502,2648.0,2647.3,0.00236196]
[1645380020899,0.00237502,2648.0,2647.4,0.9446391]
[1645380021293,0.00237502,2648.0,2647.1,5.63204]
[1645380021492,0.00237502,2648.0,2647.1,2.13204]
[1645380021693,1.06361452,2647.9,2647.6,0.00236186]
[1645380022094,12.57361452,2647.9,2647.6,0.00236186]
[1645380022294,1.06361452,2647.9,2647.6,0.00236186]
[1645380022495,0.92914266,2647.5,2646.8,3.41466613]
[1645380022692,0.92914266,2647.5,2647.2,0.00944878]
[1645380022947,0.25237502,2648.0,2647.2,0.00944878]
[1645380023151,11.76237502,2648.0,2647.2,0.00944878]
[1645380023749,0.38502361,2648.0,2646.8,0.00266613]
[1645380023952,0.25237502,2648.0,2647.5,0.0023619]
[1645380024150,0.00237502,2648.0,2647.5,0.0023619]
[1645380024951,0.00237502,2648.0,2647.3,1.88919]
[1645380025151,0.00237502,2648.0,2647.6,0.00236184]
[1645380025351,0.00098402,2647.5,2647.4,0.0548889]
[1645380025760,0.00098402,2647.5,2647.2,0.00944878]
[1645380026151,1.13001094,2647.3,2646.8,0.00266613]
[1645380026599,1.13001094,2647.3,2646.7,1.8895799]
[1645380026990,0.00098402,2647.5,2646.8,3.5]
[1645380027192,0.00098402,2647.5,2646.7,4.3792399]
[1645380027390,0.00098402,2647.5,2646.8,1.0]
[1645380027593,0.00098402,2647.5,2646.7,4.38190603]
[1645380028297,1.1924233,2647.5,2646.7,4.38190603]
[1645380028492,1.1924233,2647.5,2646.7,3.78190603]
[1645380028699,12.7024233,2647.5,2647.0,0.00234872]
[1645380029196,1.1924233,2647.5,2647.0,0.00234872]
[1645380029493,1.15756567,2647.1,2647.0,0.00234872]
[1645380029694,1.15756567,2647.1,2646.7,0.00266613]
[1645380029894,1.15756567,2647.1,2646.7,0.01206219]
[1645380030342,0.00098402,2647.5,2646.7,0.01206219]
[1645380030543,0.00232794,2647.4,2646.7,0.01206219]
[1645380031049,0.00232794,2647.4,2646.7,0.00266613]
[1645380031243,0.97062015,2647.4,2647.0,0.00234872]
[1645380032044,0.97062015,2647.4,2646.7,0.00266613]
[1645380032444,0.97062015,2647.4,2647.1,0.00234868]
[1645380032843,0.97062015,2647.4,2646.5,3.54322315]
[1645380033045,1.01779988,2647.0,2646.5,3.54322315]
[1645380033243,1.01779988,2647.0,2646.5,2.59830315]
[1645380033448,0.00232794,2647.4,2646.6,6.0]
[1645380033651,0.00232794,2647.4,2646.9,0.9447539]
[1645380033848,0.00232794,2647.4,2646.9,3.1340639]
[1645380034097,0.00232794,2647.4,2647.0,0.46537979]
[1645380035689,0.00232794,2647.4,2647.0,2.35475979]
[1645380035888,0.0013021,2647.3,2647.0,3.35475979]
[1645380036089,0.0013021,2647.3,2647.0,2.88938]
[1645380036691,0.0013021,2647.3,2647.1,0.46979887]
[1645380036897,0.32689997,2648.8,2647.3,15.5]
[1645380037093,1.1108416,2648.4,2647.6,0.9444147]
[1645380037293,0.13819997,2648.8,2647.7,6.45846887]
[1645380037591,0.13819997,2648.8,2647.8,0.46979887]
[1645380037838,1.11090218,2648.4,2647.8,1.46979887]
[1645380038037,1.06960177,2648.5,2647.8,1.94434]
[1645380038240,1.11084014,2648.4,2647.9,0.6]
[1645380038437,1.11084014,2648.4,2647.8,1.94434]
[1645380038638,1.11084014,2648.4,2647.9,1.8886426]
[1645380040042,1.11084014,2648.4,2648.0,5.0]
[1645380040244,0.05537228,2648.5,2648.1,0.76999902]
[1645380040443,0.05537228,2648.5,2648.2,4.44428]
[1645380040755,0.00130113,2648.3,2648.2,0.94428]
[1645380040940,0.00348276,2648.3,2648.2,0.94428]
[1645380041787,0.00218163,2648.3,2648.2,1.8885172]
[1645380041987,0.00218163,2648.3,2648.2,2.35873557]
[1645380042789,0.00218163,2648.3,2648.2,0.94428]
[1645380042989,0.00218163,2648.3,2647.9,1.8886426]
[1645380042990,1.11439074,2648.3,2647.9,1.8886426]
[1645380043188,0.00218163,2648.3,2647.9,1.8886426]
[1645380043389,0.00218163,2648.3,2648.0,1.41449052]
[1645380043590,0.00218163,2648.3,2648.1,0.47017052]
[1645380043788,0.00218163,2648.3,2648.1,0.77017052]
[1645380043992,0.00218163,2648.3,2648.2,0.47017052]
[1645380044291,0.00218163,2648.3,2648.0,2.8329626]
[1645380044991,0.00218163,2648.3,2648.1,0.47056179]
[1645380045191,0.00218163,2648.3,2648.1,2.65920039]
[1645380045445,0.00210166,2648.3,2648.2,0.47056179]
[1645380045645,0.00444666,2648.3,2648.2,0.47056179]
[1645380045841,0.00444666,2648.3,2648.2,3.97056179]
[1645380046446,0.00210166,2648.3,2648.2,0.47056179]
[1645380047744,0.00210166,2648.3,2648.2,0.77056179]
[1645380047945,0.00210166,2648.3,2648.2,1.77056179]
[1645380048144,0.00210166,2648.3,2648.2,0.47056179]
[1645380048346,0.00210166,2648.3,2648.2,1.47056179]
[1645380048745,0.00210166,2648.3,2648.2,1.77056179]
[1645380048950,0.25,2648.9,2648.4,1.88836]
[1645380049208,0.25,2648.9,2648.6,5.94404]
[1645380049399,2.1462,2649.7,2648.7,4.27056179]
[1645380049598,1.11122827,2649.6,2648.8,0.47056179]
[1645380049798,1.11122827,2649.6,2648.9,3.5]
[1645380050205,1.11122827,2649.6,2649.0,1.0]
[1645380050400,0.00234459,2649.3,2649.0,1.0]
[1645380050601,0.00234459,2649.3,2649.0,0.94395]
[1645380050602,0.8478553,2649.3,2649.0,0.94395]
[1645380050803,1.11104636,2649.2,2648.5,1.88807]
[1645380051407,0.94315319,2648.9,2648.6,0.47066132]
[1645380051601,0.94315319,2648.9,2648.5,1.88807]
[1645380052304,0.94315319,2648.9,2648.5,0.9442363]
[1645380052938,0.00234478,2648.8,2648.5,0.9442363]
[1645380053742,1.11007536,2649.5,2648.5,0.9442363]
[1645380053942,0.0023448,2648.8,2648.5,0.9442363]
[1645380054845,11.51,2649.5,2648.5,0.9442363]
[1645380055144,0.0023448,2648.8,2648.5,0.9442363]
[1645380055544,0.0023448,2648.8,2648.4,1.88836]
[1645380055744,0.00433675,2648.8,2648.3,0.2872]
[1645380056148,0.85326801,2648.7,2648.3,0.2872]
[1645380056346,0.85561285,2648.7,2648.3,0.2872]
[1645380056598,0.00234484,2648.7,2648.3,0.2872]
[1645380057393,0.00199195,2648.8,2648.3,0.2872]
[1645380057591,0.00230143,2648.6,2648.3,0.2872]
[1645380057996,1.43e-06,2648.6,2648.4,4.30146248]
[1645380058195,9.338e-05,2648.8,2648.5,8.9699958]
[1645380058394,9.338e-05,2648.8,2648.6,2.4138966]
[1645380058594,2.1462,2649.7,2648.8,2.83181]
[1645380058796,1.03884041,2649.6,2649.1,1.8879]
[1645380060443,2.1462,2649.7,2649.1,1.8879]
[1645380061243,0.00234451,2649.5,2649.2,5.3878633]
[1645380062043,0.00234451,2649.5,2649.2,1.8878633]
[1645380062249,1.10889187,2649.9,2649.3,0.94394]
[1645380062445,0.00234453,2649.5,2649.3,0.94394]
[1645380063347,1.10903298,2650.0,2649.3,0.94394]
[1645380063645,0.00234451,2649.5,2649.3,0.94394]
[1645380064496,0.86110267,2649.8,2649.3,0.94394]
[1645380064697,0.00234451,2649.5,2649.3,0.94394]
[1645380065700,0.00186305,2649.4,2649.3,0.94394]
[1645380065999,0.0007604,2649.4,2649.3,0.94394]
[1645380067103,0.0007604,2649.4,2649.1,1.8879]
[1645380068142,0.0007604,2649.4,2648.9,1.8878977]
[1645380068341,0.00310497,2649.4,2648.9,1.8878977]
[1645380069442,0.0007604,2649.4,2648.9,1.8878977]
[1645380069643,0.00234461,2649.3,2648.9,1.8878977]
[1645380070445,0.00182139,2649.3,2648.9,1.8878977]
[1645380070848,0.00234462,2649.2,2648.9,1.8878977]
[1645380071147,0.00234462,2649.2,2649.0,0.89402]
[1645380071789,0.00182139,2649.3,2649.0,0.89402]
[1645380071990,0.00234462,2649.2,2649.1,0.94403]
[1645380072993,0.8734435,2649.2,2649.1,0.94403]
[1645380073195,0.004166,2649.3,2648.6,0.94419]
[1645380073395,0.004166,2649.3,2648.7,0.46925018]
[1645380074192,0.00182139,2649.3,2649.0,5.02]
[1645380074393,0.00234466,2649.1,2649.0,5.02]
[1645380075441,0.00182139,2649.3,2649.0,5.02]
[1645380075639,0.00416376,2649.2,2649.0,5.02]
[1645380076639,0.00181912,2649.2,2649.0,5.02]
[1645380076840,0.00416374,2649.2,2649.0,5.02]
[1645380077740,0.00181912,2649.2,2649.0,5.02]
[1645380078138,0.00416374,2649.2,2649.0,5.02]
[1645380078939,0.00181912,2649.2,2649.0,5.02]
[1645380079194,0.00416374,2649.2,2649.0,5.02]
[1645380080194,0.00181912,2649.2,2649.0,5.02]
[1645380080395,0.00234462,2649.2,2649.0,5.02]
[1645380081394,1.1126621,2649.4,2649.0,5.02]
[1645380081593,0.00234462,2649.2,2649.0,5.02]
[1645380082092,0.00234462,2649.2,2649.1,0.47160939]
[1645380082294,0.00234462,2649.2,2649.1,0.46519565]
[1645380082493,1.1126621,2649.4,2649.1,0.46519565]
[1645380082943,0.00234461,2649.3,2649.1,0.46519565]
[1645380083739,1.1126621,2649.4,2649.1,0.46519565]
[1645380083942,0.00234459,2649.3,2649.1,0.46519565]
[1645380084944,1.1126621,2649.4,2649.1,0.46519565]
[1645380085246,0.00234459,2649.3,2649.1,0.46519565]
[1645380085450,0.00181912,2649.2,2649.1,0.46519565]
[1645380088593,0.00181912,2649.2,2649.0,4.36487109]
[1645380090093,0.00311369,2649.2,2649.0,4.36487109]
[1645380090543,1.09345831,2649.1,2649.0,4.36487109]
[1645380091338,0.00416293,2649.2,2649.0,4.36487109]
[1645380092239,0.00181912,2649.2,2649.0,4.36487109]
[1645380092439,0.00416291,2649.2,2649.0,4.36487109]
[1645380093342,0.00181912,2649.2,2649.0,4.36487109]
[1645380093541,0.00416291,2649.2,2649.0,4.36487109]
[1645380094591,0.00181912,2649.2,2649.0,4.36487109]
[1645380094793,0.00416291,2649.2,2649.0,4.36487109]
[1645380095796,0.00181912,2649.2,2649.0,4.36487109]
[1645380095994,0.00416291,2649.2,2649.0,4.36487109]
[1645380096994,0.00181912,2649.2,2649.0,4.36487109]
[1645380097197,0.00416291,2649.2,2649.0,4.36487109]
[1645380098244,0.00181912,2649.2,2649.0,4.36487109]
[1645380098448,0.00416291,2649.2,2649.0,4.36487109]
[1645380099447,0.00181912,2649.2,2649.0,4.36487109]
[1645380099644,3.50416291,2649.2,2649.0,4.36487109]
[1645380100544,0.00181912,2649.2,2649.0,4.36487109]
[1645380100747,3.50181912,2649.2,2649.0,4.36487109]
[1645380100944,3.50416291,2649.2,2649.0,4.36487109]
[1645380101792,3.50181912,2649.2,2649.0,4.36487109]
[1645380102194,0.00416291,2649.2,2649.0,4.36487109]
[1645380102393,1.11131041,2649.2,2649.1,0.48582331]
[1645380102992,1.10896662,2649.2,2649.1,0.48582331]
[1645380103194,5.32117781,2649.2,2649.1,0.48582331]
[1645380103495,1.10896662,2649.2,2649.1,0.48584471]
[1645380103898,16.11896662,2649.2,2649.1,0.48584471]
[1645380104097,16.11896662,2649.2,2649.0,4.36487109]
[1645380104098,13.56858154,2649.2,2649.0,4.36487109]
[1645380104294,12.8058475,2649.1,2649.0,4.36487109]
[1645380104497,12.6171475,2649.1,2649.0,4.36487109]
[1645380105650,12.61896434,2649.1,2649.0,4.36487109]
[1645380106251,16.11896434,2649.1,2649.0,4.36487109]
[1645380108249,16.11896434,2649.1,2649.0,2.85590285]
[1645380108650,16.11896434,2649.1,2649.0,1.14421872]
[1645380109895,16.83275938,2649.1,2649.0,1.14421872]
[1645380110093,16.11896434,2649.1,2649.0,1.14421872]
[1645380110493,16.83273766,2649.1,2649.0,1.14421872]
[1645380110693,16.83273344,2649.1,2649.0,1.14421872]
[1645380111296,16.11896434,2649.1,2649.0,1.872e-05]
[1645380111603,25.59706434,2649.1,2649.0,1.872e-05]
[1645380111796,28.13276434,2649.1,2649.0,1.872e-05]
[1645380111997,29.55322062,2649.1,2649.0,1.872e-05]
[1645380112594,30.98899273,2649.1,2649.0,1.872e-05]
[1645380113243,26.05322062,2649.1,2649.0,1.872e-05]
[1645380113443,0.00078128,2648.9,2648.0,0.50556376]
[1645380113641,0.87105051,2647.8,2647.2,1.94795413]
[1645380113843,11.51,2648.3,2647.3,0.5052803]
[1645380114041,11.51,2648.1,2647.4,0.5052803]
[1645380114248,11.51,2648.1,2647.5,0.51460775]
[1645380114249,1.0825109,2648.0,2647.5,0.51460775]
[1645380114442,1.0825109,2648.0,2647.6,0.5052803]
[1645380115344,0.85758094,2647.8,2647.7,0.5052803]
[1645380115543,0.85758094,2647.8,2647.4,0.5052803]
[1645380116346,1.0813491,2647.7,2647.4,0.5052803]
[1645380116598,0.85758094,2647.8,2647.5,0.5052803]
[1645380116800,0.85758094,2647.8,2647.6,0.5052803]
[1645380116801,1.07936815,2647.7,2647.6,0.5052803]
[1645380116996,12.36758094,2647.8,2647.6,0.5052803]
[1645380117196,12.36758094,2647.8,2647.2,0.0023317]
[1645380117399,12.36758094,2647.8,2647.0,0.50701661]
[1645380117598,12.36758094,2647.8,2647.1,0.50701661]
[1645380117796,12.36758094,2647.8,2647.2,0.51867559]
[1645380117997,12.36758094,2647.8,2647.3,0.50439184]
[1645380118196,12.36758094,2647.8,2647.3,0.50701661]
[1645380118897,12.36758094,2647.8,2647.4,0.50439184]
[1645380119097,12.36758094,2647.8,2647.5,0.50439184]
[1645380119400,0.14076492,2647.9,2647.5,0.50439184]
[1645380119599,11.51,2648.2,2647.2,0.00233168]
[1645380119798,2.66464806,2648.3,2647.2,0.50701661]
[1645380119799,12.58935599,2648.1,2647.2,0.50701661]
[1645380119997,1.07935599,2648.0,2647.3,0.50439184]
[1645380120203,0.19703971,2648.2,2647.4,0.50439184]
[1645380120449,0.19703971,2648.2,2647.3,0.00262477]
[1645380120450,2.51639997,2648.3,2647.5,0.50439184]
[1645380120648,0.00178498,2647.7,2647.6,4.00439184]
[1645380120847,0.00178498,2647.7,2647.6,0.50439184]
[1645380121244,0.00178498,2647.7,2647.5,0.50439184]
[1645380121446,0.00178498,2647.7,2647.6,4.00439184]
[1645380121646,8.498e-05,2647.7,2647.6,5.89330184]
[1645380121847,8.498e-05,2647.7,2647.6,6.83784094]
[1645380122350,0.25,2648.8,2647.8,2.83257]
[1645380122546,0.00233041,2648.7,2647.8,8.22095]
[1645380122751,0.00233041,2648.7,2647.9,0.50439184]
[1645380122945,0.00233041,2648.7,2648.0,3.5]
[1645380123149,0.00233041,2648.7,2648.1,0.50439184]
[1645380123648,0.00233075,2648.7,2648.2,0.50439184]
[1645380124802,0.00078128,2648.9,2648.2,0.50439184]
[1645380125095,0.0023308,2648.7,2648.3,3.5]
[1645380125295,0.0023308,2648.7,2648.4,0.50439184]
[1645380125895,0.0023308,2648.7,2648.0,2.8325813]
[1645380125896,0.98895717,2648.9,2648.5,0.50439184]
[1645380126097,0.98895717,2648.9,2648.0,2.8325813]
[1645380126098,0.00233085,2648.7,2648.0,2.8325813]
[1645380126299,0.00233085,2648.7,2648.1,0.50393207]
[1645380126700,1.04998334,2648.5,2648.1,0.50393207]
[1645380126897,1.04998334,2648.5,2648.2,0.50393207]
[1645380127096,1.04998334,2648.5,2647.6,1.8890895]
[1645380127302,1.04998334,2648.5,2647.7,0.50405749]
[1645380128949,1.08004765,2648.4,2647.7,0.50405749]
[1645380129149,1.08004765,2648.4,2647.7,0.49973577]
[1645380129345,1.04998334,2648.5,2647.7,0.49973577]
[1645380129953,11.51,2648.4,2647.7,0.49973577]
[1645380130151,0.13459594,2648.6,2647.7,0.49973577]
[1645380130349,0.1910306,2648.7,2647.6,0.00260586]
[1645380130548,0.00173717,2648.4,2647.6,0.00260586]
[1645380130950,11.67912182,2648.7,2647.6,0.00260586]
[1645380131152,0.16912182,2648.7,2647.6,0.94455]
[1645380131351,0.16912182,2648.7,2647.7,0.9445029]
[1645380131605,0.00233065,2648.7,2647.7,0.9445029]
[1645380131904,3.5,2648.7,2647.7,0.9445029]
[1645380132104,3.50233068,2648.7,2647.7,0.9445029]
[1645380132508,0.00233068,2648.7,2648.0,0.94443]
[1645380133205,0.25,2648.8,2648.0,0.94443]
[1645380133404,0.00233075,2648.7,2648.0,0.94443]
[1645380134204,3.5,2648.7,2648.0,0.94443]
[1645380134405,3.5,2648.7,2647.7,4.0409129]
[1645380134606,0.00233075,2648.7,2647.7,2.83591876]
[1645380135206,0.00233075,2648.7,2647.7,3.55228987]
[1645380135449,1.09789561,2648.8,2647.7,2.83591876]
[1645380135645,0.00167968,2648.6,2647.7,2.83591876]
[1645380136445,0.00167968,2648.6,2647.7,3.55228987]
[1645380138848,0.00167968,2648.6,2647.7,2.83591876]
[1645380139698,0.00167968,2648.6,2647.7,3.55228987]
[1645380140303,0.90378608,2648.4,2647.7,2.60778697]
[1645380140499,0.90378608,2648.4,2647.7,1.89141586]
[1645380141702,0.0016774,2648.5,2647.7,1.89141586]
[1645380142403,0.0016774,2648.5,2647.7,2.60778697]
[1645380142850,0.0016774,2648.5,2647.8,0.71637111]
[1645380143348,0.0016774,2648.5,2647.7,2.60778697]
[1645380143544,0.0016774,2648.5,2647.7,1.89141586]
[1645380143743,0.0016774,2648.5,2647.7,2.60778697]
[1645380145547,3.50296945,2648.7,2647.7,2.60778697]
[1645380145746,1.03719473,2648.4,2647.7,2.60778697]
[1645380147693,3.50296943,2648.7,2647.7,2.60778697]
[1645380147896,0.00296943,2648.7,2647.8,0.71637111]
[1645380148593,0.00167513,2648.7,2647.7,2.60778697]
[1645380148992,0.00400066,2648.7,2647.8,0.71637111]
[1645380149193,1.08758247,2648.7,2647.8,1.22182809]
[1645380149796,1.08525694,2648.7,2647.8,1.22182809]
[1645380149994,5.77293917,2648.7,2647.8,1.22182809]
[1645380150192,0.7243145,2648.6,2647.8,1.22182809]
[1645380150648,0.00167285,2648.3,2647.7,2.60778697]
[1645380151052,0.00061454,2648.3,2647.7,2.60778697]
[1645380151649,0.00061454,2648.3,2647.8,0.71637111]
[1645380152849,0.00061454,2648.3,2647.7,2.60778697]
[1645380155098,0.00061454,2648.3,2647.8,0.71637111]
[1645380155499,1.19163784,2648.7,2647.8,0.71637111]
[1645380156000,1.18931501,2648.7,2647.8,0.71637111]
[1645380156202,1.1906122,2648.7,2647.8,0.71637111]
[1645380156500,1.1906122,2648.7,2647.7,2.60778697]
[1645380156699,1.1906122,2648.7,2647.7,0.71897697]
[1645380157099,1.18931501,2648.7,2647.7,0.71897697]
[1645380157301,1.19061227,2648.7,2647.8,0.71637111]
[1645380158353,1.18931501,2648.7,2647.8,0.71637111]
[1645380158551,1.19164084,2648.7,2647.8,0.71637111]
[1645380159549,1.18931501,2648.7,2647.7,0.71897697]
[1645380159751,1.19144631,2648.7,2647.8,0.71637111]
[1645380160150,0.00376408,2648.7,2647.8,0.71637111]
[1645380160350,0.00376408,2648.7,2647.9,0.71637111]
[1645380160551,0.00376408,2648.7,2647.8,0.71637111]
[1645380160752,0.00163278,2648.7,2647.8,0.71637111]
[1645380160955,0.00376408,2648.7,2647.9,0.71637111]
[1645380161802,0.00163278,2648.7,2647.9,0.71637111]
[1645380162001,0.00163278,2648.7,2647.8,0.71637111]
[1645380162203,0.0037641,2648.7,2647.8,0.71637111]
[1645380162604,0.0037641,2648.7,2647.9,4.21637111]
[1645380162802,0.0037641,2648.7,2648.0,2.60521401]
[1645380163002,0.00163278,2648.7,2648.0,1.8888429]
[1645380163201,0.00163278,2648.7,2648.0,0.94443]
[1645380163405,0.0037641,2648.7,2648.0,1.66080111]
[1645380163902,0.0037641,2648.7,2648.0,0.71637111]
[1645380164101,0.0037641,2648.7,2647.8,0.71637111]
[1645380164306,0.71434343,2648.7,2647.8,0.71637111]
[1645380164503,0.71650323,2648.7,2647.8,0.71637111]
[1645380164704,0.71650323,2648.7,2647.9,0.71637111]
[1645380165553,0.71434343,2648.7,2647.9,0.71637111]
[1645380165757,0.7165032,2648.7,2647.9,0.71637111]
[1645380165954,0.7165032,2648.7,2647.8,0.71637111]
[1645380166356,1.17624751,2648.0,2647.8,0.71637111]
[1645380166561,1.17624751,2648.0,2647.7,2.56994822]
[1645380166757,12.68624751,2648.0,2647.7,2.56734236]
[1645380167355,12.68624751,2648.0,2647.5,0.00864294]
[1645380167860,11.51,2647.8,2647.4,0.00260586]
[1645380168056,11.51,2647.8,2647.2,0.00260586]
[1645380168259,11.51,2647.8,2647.2,0.01338872]
[1645380168456,12.381,2647.8,2647.2,0.01338872]
[1645380168760,11.51,2647.6,2647.2,0.01338872]
[1645380168957,0.871,2647.8,2647.2,0.01078286]
[1645380168958,11.51,2647.4,2647.2,0.01078286]
[1645380169200,11.51,2647.4,2646.8,0.71637111]
[1645380169399,11.51,2647.4,2647.2,0.00215644]
[1645380169805,3.5,2647.3,2647.2,0.00215644]
[1645380170402,1.16408879,2647.2,2647.1,0.46400313]
[1645380170605,5.78771023,2647.2,2647.1,0.46615955]
[1645380171100,5.78771023,2647.2,2647.1,0.00215642]
[1645380171503,5.78765493,2647.2,2646.9,0.46400313]
[1645380171701,4.66408879,2647.2,2647.0,0.4661602]
[1645380171903,4.66408879,2647.2,2647.1,0.46400313]
[1645380172301,4.66408879,2647.2,2647.0,0.00215707]
[1645380172703,4.66408879,2647.2,2646.9,0.46400313]
[1645380172956,4.66408879,2647.2,2647.0,0.46616022]
[1645380173160,4.62213403,2647.1,2647.0,0.00215709]
[1645380173356,1.16408879,2647.2,2647.0,0.00215709]
[1645380173757,12.67408879,2647.2,2646.9,0.45924638]
[1645380174062,12.8460013,2647.2,2646.5,0.00260586]
[1645380174257,3.5,2647.1,2647.0,0.00215709]
[1645380174658,15.01,2647.1,2647.0,0.00215709]
[1645380175056,15.01,2647.1,2646.3,0.00260586]
[1645380175256,3.5,2647.0,2646.3,0.00260586]
[1645380176158,11.51,2647.0,2646.3,0.05742295]
[1645380176799,11.51,2647.0,2646.3,0.00260586]
[1645380177402,11.51,2647.0,2646.3,0.05742295]
[1645380179002,11.51,2647.0,2646.5,0.002327]
[1645380179604,1.16563718,2647.2,2646.5,0.002327]
[1645380180005,3.5,2647.1,2646.3,0.00260586]
[1645380180206,0.00154839,2647.2,2646.6,0.00232696]
[1645380180457,0.00154839,2647.2,2646.7,0.9448704]
[1645380180458,0.00064897,2647.2,2646.7,0.9448704]
[1645380180653,0.00154156,2646.9,2646.8,3.5]
[1645380180854,5.9197686,2648.2,2646.8,0.00260586]
[1645380181052,0.25,2647.7,2646.9,1.88934]
[1645380181251,0.25,2647.7,2647.0,0.00260586]
[1645380181456,0.87463641,2647.9,2647.0,0.00260586]
[1645380181652,0.87463641,2647.9,2647.0,0.05742295]
[1645380181857,0.87463641,2647.9,2647.1,0.9446722]
[1645380182053,0.87463641,2647.9,2647.2,0.00260586]
[1645380182453,0.1887,2648.1,2647.2,0.00260586]
[1645380183654,0.92648956,2648.0,2647.2,0.00260586]
[1645380183855,0.87648956,2648.0,2647.2,0.00260586]
[1645380184503,6.10846904,2648.2,2647.2,0.00260586]
[1645380184798,3.4639,2648.2,2647.2,0.00260586]
[1645380184998,11.51,2648.1,2647.2,0.00260586]
[1645380185399,1.09068988,2648.0,2647.2,0.00260586]
[1645380185599,0.00147488,2647.8,2647.2,0.00260586]
[1645380187600,0.00147488,2647.8,2647.0,0.01191392]
[1645380188049,0.00147488,2647.8,2647.0,0.00930806]
[1645380188249,0.00147488,2647.8,2646.8,0.00260586]
[1645380188652,0.00147488,2647.8,2646.9,0.01163528]
[1645380189051,0.00147488,2647.8,2646.9,2.84590718]
[1645380189252,0.00147488,2647.8,2647.0,0.00260586]
[1645380190760,0.00147488,2647.8,2647.0,3.50260586]
[1645380190956,0.00147488,2647.8,2647.0,0.05742295]
[1645380191705,0.00147488,2647.8,2646.9,2.80333673]
[1645380191905,0.00147488,2647.8,2646.9,2.84651854]
[1645380192109,0.00147488,2647.8,2646.9,3.04695382]
[1645380192311,0.00147488,2647.8,2646.9,1.25642528]
[1645380192507,0.00147488,2647.8,2646.9,0.95642528]
[1645380193106,0.00147488,2647.8,2646.9,0.94479]
[1645380194107,1.11401448,2647.8,2646.9,0.94479]
[1645380194607,1.11401448,2647.8,2646.9,0.00232446]
[1645380194911,2.29471448,2647.8,2646.9,0.00232446]
[1645380195352,1.1125396,2647.7,2646.9,0.46802653]
[1645380195553,1.1125396,2647.7,2646.9,0.46570207]
[1645380195751,1.1140122,2647.7,2646.9,0.46802653]
[1645380196752,1.1140122,2647.7,2646.9,0.46570207]
[1645380196952,1.1140122,2647.7,2647.0,3.96570207]
[1645380197156,0.0014726,2647.7,2647.1,0.46570207]
[1645380197355,0.0014726,2647.7,2647.2,5.3891537]
[1645380197754,0.0014726,2647.7,2647.2,5.44377175]
[1645380198153,0.0014726,2647.7,2647.3,1.41032087]
[1645380198356,0.0014726,2647.7,2647.4,0.46575757]
[1645380198556,0.0014726,2647.7,2647.4,3.96575757]
[1645380198757,0.0014726,2647.7,2647.5,0.46575757]
[1645380199403,0.0014726,2647.7,2647.3,0.05461805]
[1645380199604,0.0014726,2647.7,2647.4,0.46583139]
[1645380199801,0.0014726,2647.7,2647.5,0.46583139]
[1645380200003,0.0014726,2647.7,2647.6,0.46583139]
[1645380200503,0.00061011,2647.7,2647.6,0.46583139]
[1645380200702,0.00147032,2647.7,2647.3,0.99924805]
[1645380200901,0.00147032,2647.7,2647.4,0.46587857]
[1645380202956,0.00147032,2647.7,2647.3,0.46587857]
[1645380203151,0.00147032,2647.7,2647.4,0.46630537]
[1645380203353,0.00147032,2647.7,2647.2,2.8891537]
[1645380203553,0.00147032,2647.7,2647.3,0.46627688]
[1645380204754,0.00147032,2647.7,2647.3,0.52089493]
[1645380204956,0.00147032,2647.7,2647.4,0.46627688]
[1645380205255,1.06431961,2648.1,2647.4,0.46627688]
[1645380205459,3.01033885,2648.2,2647.4,0.46627688]
[1645380205852,0.0013904,2647.6,2647.4,0.46627688]
[1645380210658,3.01166834,2648.2,2647.4,0.46627688]
[1645380211054,3.00954219,2648.2,2647.4,0.46627688]
[1645380211454,3.01166846,2648.2,2647.4,0.46627688]
[1645380211857,3.5,2648.1,2647.4,0.46627688]
[1645380212254,3.01166846,2648.2,2647.4,0.46627688]
[1645380212454,3.5,2648.1,2647.4,0.46627688]
[1645380213259,3.72437969,2648.2,2647.4,0.46627688]
[1645380213456,3.00954219,2648.2,2647.4,0.46627688]
[1645380213656,3.5,2648.1,2647.4,0.46627688]
[1645380214096,3.01159888,2648.2,2647.4,0.46627688]
[1645380214299,3.5,2648.1,2647.4,0.46627688]
[1645380214902,3.5,2648.1,2647.3,0.00258429]
[1645380215600,0.00134699,2648.0,2647.3,0.00258429]
[1645380216901,0.95408306,2647.7,2647.3,0.00258429]
[1645380217103,0.95408306,2647.7,2647.1,3.01775279]
[1645380217299,0.95408306,2647.7,2647.1,1.89175279]
[1645380217501,0.95408306,2647.7,2647.1,1.90027239]
[1645380218359,0.95408306,2647.7,2647.1,1.89175279]
[1645380218954,0.95408306,2647.7,2647.1,0.00258429]
[1645380220762,3.0422,2647.9,2647.1,0.00258429]
[1645380220962,3.5,2647.8,2647.1,0.00258429]
[1645380221262,0.00133789,2647.6,2647.1,0.00258429]
[1645380223314,2.13724334,2648.1,2647.3,0.94466]
[1645380223620,0.00212666,2648.2,2647.7,0.0008]
[1645380224011,0.00212666,2648.2,2647.7,0.05541805]
[1645380224412,0.91839522,2648.5,2647.7,0.99986805]
[1645380224612,0.00212691,2648.2,2647.7,0.99986805]
[1645380224811,0.00212691,2648.2,2647.7,1.94423885]
[1645380225213,0.00212691,2648.2,2647.8,0.47819886]
[1645380225656,0.71271065,2648.6,2647.8,0.47819886]
[1645380225657,2.03997357,2648.4,2647.8,0.47819886]
[1645380225855,0.00212691,2648.2,2647.8,0.47819886]
[1645380226656,1.10936259,2648.3,2647.8,0.47819886]
[1645380226858,1.10936259,2648.2,2647.8,0.47819886]
[1645380227056,1.10936259,2648.1,2647.8,0.47819886]
[1645380227258,1.10936259,2648.0,2647.8,0.47819886]
[1645380227655,1.10936259,2647.9,2647.8,0.47819886]
[1645380227855,0.00212687,2648.2,2647.8,0.47819886]
[1645380228062,0.71271065,2648.5,2647.8,0.47819886]
[1645380228358,1.03185403,2648.6,2647.8,0.47819886]
[1645380228359,0.00212683,2648.2,2647.8,0.47819886]
[1645380228557,0.00212683,2648.2,2647.9,0.05461805]
[1645380228761,0.00212683,2648.2,2648.0,0.47819886]
[1645380229202,1.03185403,2648.6,2648.0,0.47819886]
[1645380229203,1.10936259,2648.4,2648.1,0.05461805]